Cogmind - Beta 14 @@@ ROGUE MODE // 2025.01.16 @ 20:08:57 Player: Doobadoop Result: Destroyed by Y-54 Guardian with Gatling Laser Performance ------------- Evolutions (3) 1500 Regions Visited (5) 1000 Robots Destroyed (82) 410 Value Destroyed (2361) 2361 Prototype IDs (2) 40 Alien Tech Used (0) 0 Bonus (0) 0 TOTAL SCORE: 5311 Bonus ------- None Cogmind --------- Core Integrity 0/700 Matter 150/450 Energy 99/100 System Corruption 6% Temperature Cool (6) Movement Core (100) Ox1 Location -7/Factory Parts ------- > --- POWER (2) -------- (None) > --- PROPULSION (3) --- (None) > --- UTILITY (6) ------ Large Matter Pod Improved Terrain Scan Processor Transport Network Coupler Improved Target Analyzer > --- WEAPON (2) ------- Chainsword > --- INVENTORY (5) ---- Large Storage Unit High-capacity Storage Unit Peak State ------------ > --- POWER ------------ Heavy Ion Engine Heavy Ion Engine > --- PROPULSION ------- Improved Treads Improved Treads Improved Treads > --- UTILITY ---------- Improved Heat Sink Large Storage Unit Advanced Visual Processing Unit Improved Terrain Scan Processor Transport Network Coupler Improved Targeting Computer > --- WEAPON ----------- Autogun Gauss Rifle > --- INVENTORY -------- Light Nuclear Core Light Nuclear Core Improved Deuterium Engine Light Treads Light Treads Improved Treads Improved Heat Sink High-capacity Storage Unit Large Matter Pod Transmission Jammer Gauss Rifle Gauss Rifle Gauss Rifle Advanced Assault Cannon Chainsword [Rating: 35] Favorites ----------- Power Heavy Ion Engine Engine Heavy Ion Engine Power Core Light Nuclear Core Propulsion Improved Treads Treads Improved Treads Utility Large Storage Unit Device Cooling System Storage Large Storage Unit Processor Targeting Computer Weapon EM Pulse Cannon Energy Gun Small Laser Energy Cannon EM Pulse Cannon Ballistic Gun Autogun Ballistic Cannon Advanced Assault Cannon Impact Weapon Hammer Slashing Weapon Chainsword Build | -11 -10 -9 -8 -8 -7 ------- Run | Yrd Mat Mat Mat Sto Fac Slots Evolved 6 | . . 2 2 . 2 Power 1 | . . . 1 . . Propulsion 1 | . . . 1 . . Utility 4 | . . 2 . . 2 Weapon . | . . . . . . Parts Attached 68 | 5 3 16 2 14 28 Power 15 | 1 . 3 1 5 5 Engine 11 | 1 . 3 1 5 1 Core 4 | . . . . . 4 Reactor . | . . . . . . Propulsion 15 | 1 1 3 1 5 4 Treads 15 | 1 1 3 1 5 4 Leg . | . . . . . . Wheel . | . . . . . . Hover . | . . . . . . Flight . | . . . . . . Utility 18 | . 2 4 . 1 11 Device 8 | . . 2 . . 6 Storage 2 | . 1 . . . 1 Processor 8 | . 1 2 . 1 4 Hackware . | . . . . . . Protection . | . . . . . . Artifact . | . . . . . . Weapon 20 | 3 . 6 . 3 8 Energy Gun 1 | 1 . . . . . Energy Cannon 7 | . . 5 . 2 . Ballistic Gun 9 | 2 . . . 1 6 Ballistic Cannon 1 | . . . . . 1 Launcher . | . . . . . . Special Weapon . | . . . . . . Impact Weapon 1 | . . 1 . . . Slashing Weapon 1 | . . . . . 1 Piercing Weapon . | . . . . . . Special Melee Weapon . | . . . . . . Unidentified Prototypes 2 | . . . . 2 . Parts Lost 30 | . . 2 . 4 24 Power 8 | . . 1 . . 7 Propulsion 8 | . . . . 2 6 Utility 4 | . . . . . 4 Weapon 10 | . . 1 . 2 7 Highest Loss Streak 10 | . . 2 . 2 10 To Critical Strikes . | . . . . . . Average Slot Usage (%) 95 | . 86 97 100 98 94 Engine 13 | . 14 10 18 17 12 Treads 23 | . 25 21 27 26 21 Device 7 | . . 7 9 9 7 Storage 8 | . 12 11 9 9 6 Processor 22 | . 4 25 18 18 28 Energy Cannon 8 | . . 14 9 13 3 Ballistic Gun 8 | . 28 5 . 1 10 Peak Build Rating 35 | 4 8 17 18 26 35 Average Rating 22 | 3 6 13 17 23 31 On Entrance 11 | . 4 8 15 18 25 Naked Turns . | . . . . . . Heaviest Build 50 | 9 29 41 44 50 47 Greatest Support 69 | 20 40 40 60 69 69 Greatest Overweight (x) 10 | 1 1 6 . 1 10 Average Overweight (x) . | . . . . . . Largest Inventory Capacity 15 | 5 15 15 15 15 15 Average Capacity 14 | 5 13 15 15 15 14 Most Carried 15 | 4 10 15 13 15 15 Average Carried 12 | 3 5 13 12 13 12 Final Capacity 15 | 5 15 15 15 15 5 Final Carried 14 | 4 10 14 13 13 2 Class Distribution -------------------- 94% | Mutant 5% | Scavenger-Mutant Dominant Class ---------------- Mutant | -10/Materials Mutant | -9/Materials Mutant | -8/Materials Mutant | -8/Storage Mutant | -7/Factory Resources | -11 -10 -9 -8 -8 -7 ----------- Run | Yrd Mat Mat Mat Sto Fac Matter Collected 1473 | 216 285 276 . 219 477 Remotely 22 | . . . . . 22 Salvage Created 3333 | . 307 806 . 1220 1000 Parts 168 | . 10 42 . 54 62 Haulers Intercepted 6 | . 1 3 . 2 . Recyclers Shooed 4 | . . . . 2 2 Parts Field Recycled . | . . . . . . Retrieved Matter . | . . . . . . Parts Self-Destructed . | . . . . . . Prevented . | . . . . . . Kills | -11 -10 -9 -8 -8 -7 ------- Run | Yrd Mat Mat Mat Sto Fac Combat Hostiles Destroyed 53 | . 2 13 . 21 17 Melee 2 | . . . . 1 1 Guns 22 | . 2 5 . 1 14 Cannons 24 | . . 6 . 16 2 AOE 1 | . . 1 . . . Classes Destroyed 15 | . 4 5 . 2 4 Worker 5 | . 1 . . . 4 Builder 5 | . . . . 2 3 Hauler 6 | . 1 3 . 2 . Recycler 6 | . 2 1 . 1 2 Mechanic 1 | . . . . 1 . Operator 1 | . . . . . 1 Watcher 5 | . . 2 . 1 2 Swarmer 12 | . . 3 . 6 3 Grunt 19 | . 2 5 . 7 5 Brawler 1 | . . 1 . . . Duelist 1 | . . 1 . . . Sentry 12 | . . 3 . 8 1 Hunter 3 | . . . . . 3 Programmer 4 | . . . . . 4 Heavy 1 | . . . . . 1 Best Kill Streak 6 | . 3 4 . 6 6 Combat Bots Only 5 | . 1 4 . 5 3 Max Kills in Single Turn 3 | . 1 1 . 2 3 Gunslinging . | . . . . . . Exploded 1 | . . 1 . . . Melee 1 | . . . . 1 1 Uniques/NPCs Destroyed . | . . . . . . Combat | -11 -10 -9 -8 -8 -7 -------- Run | Yrd Mat Mat Mat Sto Fac Hostile Shots Fired 464 | . 23 35 6 132 268 Missed 139 | . 7 10 1 44 77 Damage Taken 4789 | . 141 393 83 1049 3123 Core 911 | . 7 59 . 142 703 Absorbed by Shields . | . . . . . . Regen/Repaired (Parts) 209 | . . 56 . . 153 Core Remaining (%) 89 | 100 97 85 . 74 . Volleys Fired 204 | . 18 35 . 60 91 Largest 2 | . 2 2 . 2 2 Hottest 126 | . 40 126 . 126 86 Shots Fired 358 | . 36 62 . 95 165 Gun 216 | . 36 28 . 16 136 Cannon 142 | . . 34 . 79 29 Launcher . | . . . . . . Special . | . . . . . . Kinetic 231 | . 36 28 . 16 151 Thermal . | . . . . . . Explosive . | . . . . . . Electromagnetic 127 | . . 34 . 79 14 Robot Hit Streak 18 | . 7 14 . 18 17 Robot Miss Streak 4 | . 3 2 . 2 4 Penetration Max 1 | . . . . . 1 Secondary Targets 1 | . . . . . 1 Max Gunslinging Chain 1 | . . . . . 1 Shots Hit Robots 274 | . 22 46 . 78 128 Core Hits 119 | . 12 21 . 31 55 Critical Kills . | . . . . . . Critical Parts Destroyed 4 | . . . . . 4 Critical Strikes 6 | . . . . 2 4 Destroy 4 | . . . . . 4 Corrupt 2 | . . . . 2 . Melee Attacks 16 | . . . . 6 10 Impact 6 | . . . . 6 . Slashing 10 | . . . . . 10 Piercing . | . . . . . . Sneak Attacks 3 | . . . . 2 1 Combat Hostiles . | . . . . . . Follow-up Attacks . | . . . . . . Damage Inflicted 6708 | . 292 1040 . 2052 3324 Guns 2605 | . 292 251 . 177 1885 Cannons 2831 | . . 678 . 1598 555 Explosions 669 | . . 108 . 113 448 Melee 480 | . . . . 108 372 Ramming 123 | . . 3 . 56 64 Kinetic 2918 | . 292 251 . 177 2198 Thermal 187 | . . 74 . 113 . Explosive 448 | . . . . . 448 Electromagnetic 2552 | . . 712 . 1598 242 Impact 108 | . . . . 108 . Slashing 372 | . . . . . 372 Piercing . | . . . . . . Highest Corruption 6 | . . 1 . . 6 Average Corruption 3 | . . 1 . . 5 Corruption Purged . | . . . . . . Corruption Blocked . | . . . . . . Effects 13 | . . 1 . . 12 Message Errors 5 | . . 1 . . 4 Matter Fused 3 | . . . . . 3 Heat Flow Errors 2 | . . . . . 2 Energy Discharges 1 | . . . . . 1 Parts Rejected 1 | . . . . . 1 Data Loss (minor) 1 | . . . . . 1 Overload Shots . | . . . . . . Overflow Damage 266 | . . 50 . 66 150 Projectiles 38 | . . 16 . 19 3 Explosions 156 | . . 34 . 31 91 Melee 72 | . . . . 16 56 Knockbacks 1 | . . 1 . . . Impact 1 | . . 1 . . . Kinetic . | . . . . . . Secondary . | . . . . . . Self-Inflicted Damage 298 | . . 116 . 14 168 Shots 6 | . . 3 . 1 2 Rammed 30 | . . 2 . 14 14 Targets Rammed 32 | . . 2 . 15 15 Kicked . | . . . . . . Crushed 2 | . . . . 1 1 Highest Temperature 244 | . 2 90 . 42 244 Average Temperature 22 | . 2 32 . 10 46 Received Heat Transfer 1023 | . 39 84 45 387 468 Siege Activations . | . . . . . . Robots Corrupted 6 | . . 2 . 4 . Combat Hostiles 4 | . . 1 . 3 . Parts Fried 18 | . . 3 . 15 . Impact Corruptions 1 | . . . . 1 . Robots Melted . | . . . . . . Combat Hostiles . | . . . . . . Parts Melted . | . . . . . . Heat Transferred 200 | . . 100 . 100 . Parts Sabotaged . | . . . . . . Parts Stolen . | . . . . . . Parts Stripped . | . . . . . . Power Chain Reactions 3 | . . 2 . 1 . Alert | -11 -10 -9 -8 -8 -7 ------- Run | Yrd Mat Mat Mat Sto Fac Peak Influence 395 | . 57 294 115 395 294 Initial 179 | . . 24 100 48 179 Average 115 | . 29 175 101 126 103 Maximum Alert Level 1 | . . 1 . 1 1 Low Security (%) 80 | 100 100 63 100 85 80 Level 1 19 | . . 36 . 14 19 Level 2 . | . . . . . . Level 3 . | . . . . . . Level 4 . | . . . . . . Level 5 . | . . . . . . High Security . | . . . . . . Max Security . | . . . . . . Squads Dispatched 10 | . . 3 . 2 5 Investigation 3 | . . 1 . 1 1 Extermination 3 | . . . . . 3 Reinforcement 4 | . . 2 . 1 1 Assault . | . . . . . . Garrison . | . . . . . . Intercept . | . . . . . . Searches Triggered . | . . . . . . Construction Impeded 1 | . . . . 1 . Haulers Reinforced . | . . . . . . Active Scanning Responses . | . . . . . . Cargo Convoy Interrupts . | . . . . . . Stealth | -11 -10 -9 -8 -8 -7 --------- Run | Yrd Mat Mat Mat Sto Fac Distress Signals 10 | . 1 4 . 2 3 Communications Jammed 1 | . . . . . 1 Distress Signals 1 | . . . . . 1 Times Spotted 97 | . 8 21 3 31 34 Peak Tracking Total 6 | . 3 6 3 5 6 Tactical Retreats 7 | . 1 1 . 4 1 Traps | -11 -10 -9 -8 -8 -7 ------- Run | Yrd Mat Mat Mat Sto Fac Traps Triggered 3 | . . 2 . . 1 Indirectly . | . . . . . . Trap Hack Attempts . | . . . . . . Triggered . | . . . . . . Disarmed . | . . . . . . Reprogrammed . | . . . . . . Reused . | . . . . . . Traps Extracted . | . . . . . . Installed . | . . . . . . Triggered . | . . . . . . Machines | -11 -10 -9 -8 -8 -7 ---------- Run | Yrd Mat Mat Mat Sto Fac Machines Disabled 5 | . . 1 . 1 3 Max in Single Turn 2 | . . 1 . 1 2 Garrison Access 1 | . . . . . 1 Machines Repaired . | . . . . . . Machines Dismantled . | . . . . . . Machines Sabotaged . | . . . . . . Overloaded Fab Kills . | . . . . . . Hacking | -11 -10 -9 -8 -8 -7 --------- Run | Yrd Mat Mat Mat Sto Fac Machines Accessed 10 | . 2 3 . 2 3 Terminals 6 | . 2 2 . 2 . Fabricators . | . . . . . . Repair Stations 3 | . . 1 . . 2 Recycling Units . | . . . . . . Scanalyzers . | . . . . . . Garrison Access 1 | . . . . . 1 Total Hacks 20 | . 3 7 . 3 7 Successful 11 | . 2 4 . 1 4 Failed 9 | . 1 3 . 2 3 Catastrophic 2 | . . . . 1 1 Database Lockouts . | . . . . . . Manual . | . . . . . . Terminals 10 | . 3 4 . 3 . Fabricators . | . . . . . . Repair Stations 8 | . . 3 . . 5 Recycling Units . | . . . . . . Scanalyzers . | . . . . . . Garrison Access 2 | . . . . . 2 Terminal Hacks 5 | . 2 2 . 1 . Open Door 1 | . . . . 1 . Locate Traps 1 | . . 1 . . . Dispatch Records 1 | . 1 . . . . Assault Status 1 | . . 1 . . . Hauler Manifests 1 | . 1 . . . . Fabricator Hacks . | . . . . . . Repair Station Hacks 5 | . . 2 . . 3 Scan Component 3 | . . 1 . . 2 Repair 2 | . . 1 . . 1 Recycling Unit Hacks . | . . . . . . Scanalyzer . | . . . . . . Garrison Access Hacks 1 | . . . . . 1 Seal Access 1 | . . . . . 1 Unauthorized Hacks . | . . . . . . Terminals . | . . . . . . Fabricators . | . . . . . . Repair Stations . | . . . . . . Recycling Units . | . . . . . . Scanalyzers . | . . . . . . Garrison Access . | . . . . . . Data Cores Recovered . | . . . . . . Used . | . . . . . . Hacking Detections 7 | . 1 2 . 1 3 Full Trace Events 3 | . . 1 . 1 1 Feedback Events . | . . . . . . Feedback Blocked . | . . . . . . Robot Schematics Acquired . | . . . . . . Robots Built . | . . . . . . Authchips . | . . . . . . Time . | . . . . . . Total Robot Build Rating . | . . . . . . Part Schematics Acquired . | . . . . . . Parts Built . | . . . . . . Authchips . | . . . . . . Time . | . . . . . . Total Part Build Rating . | . . . . . . Parts Repaired 2 | . . 1 . . 1 Time 58 | . . 26 . . 32 Parts Recycled . | . . . . . . Recycled Matter . | . . . . . . Retrieved Matter . | . . . . . . Retrieved Components . | . . . . . . Parts Scanalyzed . | . . . . . . Part Schematics Acquired . | . . . . . . Parts Damaged . | . . . . . . Bothacking | -11 -10 -9 -8 -8 -7 ------------ Run | Yrd Mat Mat Mat Sto Fac Used RIF Installer . | . . . . . . Robots Hacked . | . . . . . . Non-combat . | . . . . . . Combat . | . . . . . . Robot Hacks Applied . | . . . . . . Relay Couplers Released 3 | . . . . . 3 Programmers 3 | . . . . . 3 Fabnet Peak Effective % . | . . . . . . Robots Rewired 1 | . . . . 1 . Allies Hacked . | . . . . . . Hacks Repelled . | . . . . . . Allies | -11 -10 -9 -8 -8 -7 -------- Run | Yrd Mat Mat Mat Sto Fac Total Allies 1 | . . . . 1 . Largest Group 1 | . . . . 1 . Highest-Rated Group 16 | . . . . 16 . Highest-Rated Ally 16 | . . . . 16 . Total Orders . | . . . . . . Ally Attacks 4 | . . . . 4 . Total Damage 44 | . . . . 44 . Kills . | . . . . . . Allies Corrupted . | . . . . . . Allies Melted . | . . . . . . Intel | -11 -10 -9 -8 -8 -7 ------- Run | Yrd Mat Mat Mat Sto Fac Robot Analysis Total . | . . . . . . Derelict Logs Recovered . | . . . . . . Drone Launches . | . . . . . . Drone Recoveries . | . . . . . . Exploration | -11 -10 -9 -8 -8 -7 ------------- Run | Yrd Mat Mat Mat Sto Fac Turns Passed 5097 | 79 545 1183 51 1199 2040 Spaces Moved 2512 | 51 288 583 31 550 1009 Core 22 | 14 . 1 . . 7 Treads 2490 | 37 288 582 31 550 1002 Legs . | . . . . . . Wheels . | . . . . . . Hover . | . . . . . . Flight . | . . . . . . Fastest Speed 50 | 50 160 160 160 160 100 Average Speed 160 | 132 161 160 160 163 160 Slowest Speed 550 | 160 240 350 160 240 550 Overloaded Moves . | . . . . . . Propulsion Burnouts . | . . . . . . Robots Hopped . | . . . . . . Cave-ins Triggered . | . . . . . . Exploration Rate (%) 25 | 3 35 35 4 54 21 Regions Visited 5 Branch Regions 1 Pre-discovered Areas . | . . . . . . Known Exits Taken . | . . . . . . Unknown Exits Taken 5 | 1 1 1 1 1 . Scrap Searched . | . . . . . . Spaces Dug . | . . . . . . Terrain Destroyed 50 | . . 6 . 8 36 Melee . | . . . . . . Projectile 5 | . . . . . 5 AOE 45 | . . 6 . 8 31 Terrain Rammed . | . . . . . . Walls Destroyed . | . . . . . . Machines Disabled . | . . . . . . Actions | -11 -10 -9 -8 -8 -7 --------- Run | Yrd Mat Mat Mat Sto Fac Total 3193 | 60 333 771 33 740 1256 Wait 267 | . 12 103 . 76 76 Move 2507 | 50 287 582 30 549 1009 Hop . | . . . . . . Pick Up 52 | 5 10 17 1 5 14 Fast Attach 23 | 3 2 9 . 3 6 Attach 35 | 1 1 6 2 5 20 Detach 3 | . . 2 . . 1 Swap 10 | 1 . 1 . 6 2 Drop 37 | . 3 14 . 8 12 Fire 204 | . 18 35 . 60 91 Melee 16 | . . . . 6 10 Ram . | . . . . . . Kick . | . . . . . . Crush 32 | . . 2 . 15 15 Escape Stasis . | . . . . . . Rewire 7 | . . . . 7 . Trap . | . . . . . . Miscellaneous . | . . . . . . Route ------- -11/Scrapyard -10/Materials -9/Materials -8/Materials -8/Storage -7/Factory History --------- Turn | Location | Event 26 | -11/Scrapyard | Discovered new exit (range 15) 80 | -11/Scrapyard | Entered Materials 300 | -10/Materials | Build established: Mutant 601 | -10/Materials | Discovered new exit (range 15) 625 | -10/Materials | Entered another Materials area 625 | -9/Materials | Evolved 2 slots: Utility x2 736 | -9/Materials | Repaired Lgt. Treads 1784 | -9/Materials | Discovered new exit (range 15) 1808 | -9/Materials | Entered another Materials area 1808 | -8/Materials | Evolved 2 slots: Power x1, Propulsion x1 1810 | -8/Materials | Discovered new exit (range 10) 1859 | -8/Materials | Entered Storage 3025 | -8/Storage | Discovered new exit (range 15) 3058 | -8/Storage | Entered Factory 3058 | -7/Factory | Evolved 2 slots: Utility x2 3160 | -7/Factory | Repaired Imp. Treads 4820 | -7/Factory | Lost 5 parts (3p2n) 5011 | -7/Factory | Lost 4 parts (1n3w) 5026 | -7/Factory | Core integrity fell below 50% 5091 | -7/Factory | Core integrity fell below 20% 5098 | -7/Factory | Destroyed by Y-54 Guardian with Gatling Laser Last Messages --------------- 05072_ R-06 Scavenger collects Particle Gun. 05074_ Sneak attack on R-06 Scavenger. 05074_ Destroyed Com. Wheel. 05074_ Destroyed Lgt. Ion Engine. 05074_ Destroyed Tractor Beam. 05075_ K-01 Serf collects debris. 05076_ R-06 Scavenger collects Aluminum Leg. 05076_ R-06 Scavenger destroyed. 05077_ System corrupted: Energy discharge (-33). 05078_ K-01 Serf collects debris. 05079_ R-06 Scavenger destroyed. 05081_ K-01 Serf collects debris. 05082_ The unstable cave ceiling collapses. 05085_ K-01 Serf collects debris. 05090_ Mic. Nuclear Core destroyed. 05091_ K-01 Serf collects debris. 05093_ Imp. Heat Sink destroyed. 05093_ K-01 Serf collects debris. 05095_ Imp. Targeting Computer destroyed. 05097_ K-01 Serf collects debris. Map ----- +----------------------------------------------------+ | ?+???????# #?????????????????????????????????????? | | ?????????# #?????????????????????????????????????? | | ?????????# #?????????????????????????????????????? | | ?????????# #?????????????????????????????????????? | | ?????????# #?????????????????????????????????????? | | ?######### #?????????????????????????????????????? | | ## #?????????????????????????????????????? | | #?????????????????????????????????????? | | """ #?????????????????????????????????????? | | [ """ #?????????????????????????????????????? | | ## """ ###??????????? ?????????????????????? | | # +???????? ????????????????????? | | #"" """ ###??????????? ????????????????????? | | #"" """ #????????????? ?????????????????????? | | #"T """ #????????????? ?????????????????????? | | #"" #????????????? ???#?????????????????? | | #"" #????????????? # #?????????????????? | | # #????????????? ? #?????#???????????? | | ## ###############+###u#########?????????? | | ????????? | | k % ????????? | | "" """ % ????????? | | "" """ % k ????????? | | "" """ !% % ???????? | | |%* % ???????? | | "" """ k %[@%% ???????? | | "" """ ########### #=!Y#;# #########??????????? | | "" """ #??????# k=![!Y# #??????????????????? | | #??????# """ %* #??????????????????? | | "" """ ######## "G" #??????????????????? | | "" """ % + " " # #?????????????????? | | "" """ ####### # #????????????????? | | #?????# ###????????????????? | | #?????#] # #?????????????????? | | #?????# #?????????????????? | | #?????# # ##?????????????????? | | #?????# """ # #??????????????????? | | ####### #?????# """ ###??????????????????? | | ??????# #?????# """ #????????????????????? | | ??????# #?????# !! #????????????????????? | | ??????# #?????#############????????????????????? | | ??????# #??????????????????????????????????????? | | ####### #??????????????????????????????????????? | | #??????????????????????????????????????? | | #??????????????????????????????????????? | | #??????????????????????????????????????? | | ##+########??????????????????????????????????????? | | #????????????????????????????????????????? | | """"""" #????????????????????????????????????????? | | #????????????????????????????????????????? | +----------------------------------------------------+ Best States ------------- Heat Dissipation 62 Energy Generation 25 Energy Capacity 460 Matter Stores 300 Matter Capacity 450 Sight Range 20 Terrain Scan Density 110 Jamming Range 12 Evasion (%) 40 Targeting Accuracy 11 Target Analysis 6 Recoil Reduction 3 Item Schematics ----------------- None Robot Schematics ------------------ None Fabricated ------------ Nothing Alien Tech Used ----------------- None Achievements -------------- A New Friend Challenges ------------ None Game ------ Seed MyomerPointyWell Manual? 0 Play Time 00:36:34 Cumulative 13.0 hours Start 2025.01.16 @ 19:30:19 End 2025.01.16 @ 20:08:57 Sessions 1 Manual Loads 0 Difficulty Rogue Special Mode None Game No. 22 Rogue 20 Adventurer 2 Explorer 0 Win Type - Total 0 Types 0/0/0/0/0/0/0/0/0 Lore% 5 Gallery% 23 Achievement% 18 Wizard Run 0 Options --------- Layout 1 ASCII 0 Keyboard 0 Movement Arrows Keybinds 0 Fullscreen 1 Font 32/SmallcapsGlow Map View 50x35 Zoom Use 0% Tactical HUD 1 Map Filters NONE Filters NONE Steam 1 RUN: d884595e-fa49-4f71-8ccb-9ddae5932fba